Workbook

Sheet Demand
B6: Step 1: Enter Demand Locations | G6: Step 2: Enter Number of Greenfield Plants | M6: Results
B7: Demand Region | C7: Demand (Qty) | D7: Latitude | E7: Longitude | G7: (max 5) | M7: Greenfield Locations
B8: Region 1 - Delhi | C8: 67 | D8: 28.61 | E8: 77.23 | G8: 4 | M8: Plant | N8: Latitude | O8: Longitude
B9: Region 2 - Mumbai | C9: 70 | D9: 18.975 | E9: 72.825833 | M9: =IF($G$8>=1,"Greenfield 1","") -> Greenfield 1 | N9: =IF($G$8>=1,'n-Centroid'!N33,"") -> 13.59641107 | O9: =IF($G$8>=1,'n-Centroid'!N34,"") -> 78.48190059
B10: Region 3 - Kolkata | C10: 70 | D10: 22.566667 | E10: 88.366667 | G10: Step 3: Reset Solver | M10: =IF($G$8>=2,"Greenfield 2","") -> Greenfield 2 | N10: =IF($G$8>=2,'n-Centroid'!O33,"") -> 22.56666703 | O10: =IF($G$8>=2,'n-Centroid'!O34,"") -> 88.3666665
B11: Region 4 - Chennai | C11: 46 | D11: 13.083333 | E11: 80.266667 | M11: =IF($G$8>=3,"Greenfield 3","") -> Greenfield 3 | N11: =IF($G$8>=3,'n-Centroid'!P33,"") -> 23.02996671 | O11: =IF($G$8>=3,'n-Centroid'!P34,"") -> 72.5800029
B12: Region 5 - Bangalore | C12: 54 | D12: 12.966667 | E12: 77.566667 | M12: =IF($G$8>=4,"Greenfield 4","") -> Greenfield 4 | N12: =IF($G$8>=4,'n-Centroid'!Q33,"") -> 26.90404861 | O12: =IF($G$8>=4,'n-Centroid'!Q34,"") -> 77.46830385
B13: Region 6 - Bhopal | C13: 66 | D13: 23.25 | E13: 77.416667 | M13: =IF($G$8>=5,"Greenfield 5","") ->  | N13: =IF($G$8>=5,'n-Centroid'!R33,"") ->  | O13: =IF($G$8>=5,'n-Centroid'!R34,"") -> 
B14: Region 7 - Ahmedabad | C14: 78 | D14: 23.03 | E14: 72.58 | G14: Step 4: Run Solver
B15: Region 8 - Hyderabad | C15: 44 | D15: 17.37 | E15: 78.48 | M15: Demand Region Mapping
B16: Region 9 - Jaipur | C16: 19 | D16: 26.9 | E16: 75.8 | G16: Select worksheet 'n-Centroid' | M16: Demand Region | N16: Serving Greenfield | O16: Service Distance (km)
B17: Region 10 - Lucknow | C17: 28 | D17: 26.8 | E17: 80.9 | G17: Click Data tab --> Solver | M17: Region 1 - Delhi | N17: ="Greenfield "&MATCH(1,'n-Centroid'!$N23:$R23,0) -> Greenfield 4 | O17: =CHOOSE(MATCH(1,'n-Centroid'!$N23:$R23,0),'n-Centroid'!V23,'n-Centroid'!W23,'n-Centroid'!X23,'n-Centroid'!Y23,'n-Centroid'!Z23) -> 191.1367846
G18: Click "Solve" | M18: Region 2 - Mumbai | N18: ="Greenfield "&MATCH(1,'n-Centroid'!$N24:$R24,0) -> Greenfield 3 | O18: =CHOOSE(MATCH(1,'n-Centroid'!$N24:$R24,0),'n-Centroid'!V24,'n-Centroid'!W24,'n-Centroid'!X24,'n-Centroid'!Y24,'n-Centroid'!Z24) -> 451.6128633
M19: Region 3 - Kolkata | N19: ="Greenfield "&MATCH(1,'n-Centroid'!$N25:$R25,0) -> Greenfield 2 | O19: =CHOOSE(MATCH(1,'n-Centroid'!$N25:$R25,0),'n-Centroid'!V25,'n-Centroid'!W25,'n-Centroid'!X25,'n-Centroid'!Y25,'n-Centroid'!Z25) -> 0
M20: Region 4 - Chennai | N20: ="Greenfield "&MATCH(1,'n-Centroid'!$N26:$R26,0) -> Greenfield 1 | O20: =CHOOSE(MATCH(1,'n-Centroid'!$N26:$R26,0),'n-Centroid'!V26,'n-Centroid'!W26,'n-Centroid'!X26,'n-Centroid'!Y26,'n-Centroid'!Z26) -> 201.3527882
M21: Region 5 - Bangalore | N21: ="Greenfield "&MATCH(1,'n-Centroid'!$N27:$R27,0) -> Greenfield 1 | O21: =CHOOSE(MATCH(1,'n-Centroid'!$N27:$R27,0),'n-Centroid'!V27,'n-Centroid'!W27,'n-Centroid'!X27,'n-Centroid'!Y27,'n-Centroid'!Z27) -> 121.2998384
M22: Region 6 - Bhopal | N22: ="Greenfield "&MATCH(1,'n-Centroid'!$N28:$R28,0) -> Greenfield 4 | O22: =CHOOSE(MATCH(1,'n-Centroid'!$N28:$R28,0),'n-Centroid'!V28,'n-Centroid'!W28,'n-Centroid'!X28,'n-Centroid'!Y28,'n-Centroid'!Z28) -> 406.3449292
M23: Region 7 - Ahmedabad | N23: ="Greenfield "&MATCH(1,'n-Centroid'!$N29:$R29,0) -> Greenfield 3 | O23: =CHOOSE(MATCH(1,'n-Centroid'!$N29:$R29,0),'n-Centroid'!V29,'n-Centroid'!W29,'n-Centroid'!X29,'n-Centroid'!Y29,'n-Centroid'!Z29) -> 0.003710986675
M24: Region 8 - Hyderabad | N24: ="Greenfield "&MATCH(1,'n-Centroid'!$N30:$R30,0) -> Greenfield 1 | O24: =CHOOSE(MATCH(1,'n-Centroid'!$N30:$R30,0),'n-Centroid'!V30,'n-Centroid'!W30,'n-Centroid'!X30,'n-Centroid'!Y30,'n-Centroid'!Z30) -> 419.6039934
M25: Region 9 - Jaipur | N25: ="Greenfield "&MATCH(1,'n-Centroid'!$N31:$R31,0) -> Greenfield 4 | O25: =CHOOSE(MATCH(1,'n-Centroid'!$N31:$R31,0),'n-Centroid'!V31,'n-Centroid'!W31,'n-Centroid'!X31,'n-Centroid'!Y31,'n-Centroid'!Z31) -> 165.4310674
M26: Region 10 - Lucknow | N26: ="Greenfield "&MATCH(1,'n-Centroid'!$N32:$R32,0) -> Greenfield 4 | O26: =CHOOSE(MATCH(1,'n-Centroid'!$N32:$R32,0),'n-Centroid'!V32,'n-Centroid'!W32,'n-Centroid'!X32,'n-Centroid'!Y32,'n-Centroid'!Z32) -> 340.6290392
N27: Weigted Avg Service Distance --> | O27: =ROUND('n-Centroid'!AA34,0)&" kms" -> 218 kms
A33: © Copyright Supply Chain Detective. This work is licensed under Creative Commons Attribution-NonCommercial-ShareAlike 4.0 International License. This means that you are free to copy, modify and distribute the derivatives of this work under the same license for non-commercial use only with attribution to the original author. If you wish to use this work for commercial purposes, including training, contact the author for appropriate permissions.
EZ2678: © Copyright Supply Chain Detective. This work is licensed under Creative Commons Attribution-NonCommercial-ShareAlike 4.0 International License. This means that you are free to copy, modify and distribute the derivatives of this work under the same license for non-commercial use only with attribution to the original author. If you wish to use this work for commercial purposes, including training, contact the author for appropriate permissions.

Sheet Answer Report 1
A1: Microsoft Excel 15.0 Answer Report
A2: Worksheet: [Greenfield v2.xlsm]n-Centroid
A3: Report Created: 8/2/2017 7:24:10 AM
A4: Result: Solver has converged to the current solution. All Constraints are satisfied.
A5: Solver Engine
B6: Engine: GRG Nonlinear
B7: Solution Time: 3446.047 Seconds.
B8: Iterations: 77 Subproblems: 6 | K8: =3446/60 -> 57.43333333
A9: Solver Options
B10: Max Time Unlimited, Iterations Unlimited, Precision 0.000000001, Use Automatic Scaling
B11: Convergence 0.000001, Population Size 100, Random Seed 0, Derivatives Central, Multistart, Require Bounds
B12: Max Subproblems Unlimited, Max Integer Sols Unlimited, Integer Tolerance 1%, Assume NonNegative
A14: Objective Cell (Min)
B15: Cell | C15: Name | D15: Original Value | E15: Final Value
B16: $AA$33 | C16: Σ Dist x Demand Dist x Demand | D16: 0 | E16: 118193.9184
A19: Variable Cells
B20: Cell | C20: Name | D20: Original Value | E20: Final Value | F20: Integer
B21: $N$23 | C21: Region 1 - Delhi Plant 1 | D21: 0 | E21: 0 | F21: Binary
B22: $O$23 | C22: Region 1 - Delhi Plant 2 | D22: 0 | E22: 0 | F22: Binary
B23: $P$23 | C23: Region 1 - Delhi Plant 3 | D23: 0 | E23: 0 | F23: Binary
B24: $Q$23 | C24: Region 1 - Delhi Plant 4 | D24: 0 | E24: 1 | F24: Binary
B25: $R$23 | C25: Region 1 - Delhi Plant 5 | D25: 0 | E25: 0 | F25: Binary
B26: $N$24 | C26: Region 2 - Mumbai Plant 1 | D26: 0 | E26: 0 | F26: Binary
B27: $O$24 | C27: Region 2 - Mumbai Plant 2 | D27: 0 | E27: 0 | F27: Binary
B28: $P$24 | C28: Region 2 - Mumbai Plant 3 | D28: 0 | E28: 1 | F28: Binary
B29: $Q$24 | C29: Region 2 - Mumbai Plant 4 | D29: 0 | E29: 0 | F29: Binary
B30: $R$24 | C30: Region 2 - Mumbai Plant 5 | D30: 0 | E30: 0 | F30: Binary
B31: $N$25 | C31: Region 3 - Kolkata Plant 1 | D31: 0 | E31: 0 | F31: Binary
B32: $O$25 | C32: Region 3 - Kolkata Plant 2 | D32: 0 | E32: 1 | F32: Binary
B33: $P$25 | C33: Region 3 - Kolkata Plant 3 | D33: 0 | E33: 0 | F33: Binary
B34: $Q$25 | C34: Region 3 - Kolkata Plant 4 | D34: 0 | E34: 0 | F34: Binary
B35: $R$25 | C35: Region 3 - Kolkata Plant 5 | D35: 0 | E35: 0 | F35: Binary
B36: $N$26 | C36: Region 4 - Chennai Plant 1 | D36: 0 | E36: 1 | F36: Binary
B37: $O$26 | C37: Region 4 - Chennai Plant 2 | D37: 0 | E37: 0 | F37: Binary
B38: $P$26 | C38: Region 4 - Chennai Plant 3 | D38: 0 | E38: 0 | F38: Binary
B39: $Q$26 | C39: Region 4 - Chennai Plant 4 | D39: 0 | E39: 0 | F39: Binary
B40: $R$26 | C40: Region 4 - Chennai Plant 5 | D40: 0 | E40: 0 | F40: Binary
B41: $N$27 | C41: Region 5 - Bangalore Plant 1 | D41: 0 | E41: 1 | F41: Binary
B42: $O$27 | C42: Region 5 - Bangalore Plant 2 | D42: 0 | E42: 0 | F42: Binary
B43: $P$27 | C43: Region 5 - Bangalore Plant 3 | D43: 0 | E43: 0 | F43: Binary
B44: $Q$27 | C44: Region 5 - Bangalore Plant 4 | D44: 0 | E44: 0 | F44: Binary
B45: $R$27 | C45: Region 5 - Bangalore Plant 5 | D45: 0 | E45: 0 | F45: Binary
B46: $N$28 | C46: Region 6 - Bhopal Plant 1 | D46: 0 | E46: 0 | F46: Binary
B47: $O$28 | C47: Region 6 - Bhopal Plant 2 | D47: 0 | E47: 0 | F47: Binary
B48: $P$28 | C48: Region 6 - Bhopal Plant 3 | D48: 0 | E48: 0 | F48: Binary
B49: $Q$28 | C49: Region 6 - Bhopal Plant 4 | D49: 0 | E49: 1 | F49: Binary
B50: $R$28 | C50: Region 6 - Bhopal Plant 5 | D50: 0 | E50: 0 | F50: Binary
B51: $N$29 | C51: Region 7 - Ahmedabad Plant 1 | D51: 0 | E51: 0 | F51: Binary
B52: $O$29 | C52: Region 7 - Ahmedabad Plant 2 | D52: 0 | E52: 0 | F52: Binary
B53: $P$29 | C53: Region 7 - Ahmedabad Plant 3 | D53: 0 | E53: 1 | F53: Binary
B54: $Q$29 | C54: Region 7 - Ahmedabad Plant 4 | D54: 0 | E54: 0 | F54: Binary
B55: $R$29 | C55: Region 7 - Ahmedabad Plant 5 | D55: 0 | E55: 0 | F55: Binary
B56: $N$30 | C56: Region 8 - Hyderabad Plant 1 | D56: 0 | E56: 1 | F56: Binary
B57: $O$30 | C57: Region 8 - Hyderabad Plant 2 | D57: 0 | E57: 0 | F57: Binary
B58: $P$30 | C58: Region 8 - Hyderabad Plant 3 | D58: 0 | E58: 0 | F58: Binary
B59: $Q$30 | C59: Region 8 - Hyderabad Plant 4 | D59: 0 | E59: 0 | F59: Binary
B60: $R$30 | C60: Region 8 - Hyderabad Plant 5 | D60: 0 | E60: 0 | F60: Binary
B61: $N$31 | C61: Region 9 - Jaipur Plant 1 | D61: 0 | E61: 0 | F61: Binary
B62: $O$31 | C62: Region 9 - Jaipur Plant 2 | D62: 0 | E62: 0 | F62: Binary
B63: $P$31 | C63: Region 9 - Jaipur Plant 3 | D63: 0 | E63: 0 | F63: Binary
B64: $Q$31 | C64: Region 9 - Jaipur Plant 4 | D64: 0 | E64: 1 | F64: Binary
B65: $R$31 | C65: Region 9 - Jaipur Plant 5 | D65: 0 | E65: 0 | F65: Binary
B66: $N$32 | C66: Region 10 - Lucknow Plant 1 | D66: 0 | E66: 0 | F66: Binary
B67: $O$32 | C67: Region 10 - Lucknow Plant 2 | D67: 0 | E67: 0 | F67: Binary
B68: $P$32 | C68: Region 10 - Lucknow Plant 3 | D68: 0 | E68: 0 | F68: Binary
B69: $Q$32 | C69: Region 10 - Lucknow Plant 4 | D69: 0 | E69: 1 | F69: Binary
B70: $R$32 | C70: Region 10 - Lucknow Plant 5 | D70: 0 | E70: 0 | F70: Binary
B71: $N$33 | C71: Plant Lat Plant 1 | D71: 0 | E71: 13.59641107 | F71: Contin
B72: $O$33 | C72: Plant Lat Plant 2 | D72: 0 | E72: 22.56666703 | F72: Contin
B73: $P$33 | C73: Plant Lat Plant 3 | D73: 0 | E73: 23.02996671 | F73: Contin
B74: $Q$33 | C74: Plant Lat Plant 4 | D74: 0 | E74: 26.90404861 | F74: Contin
B75: $R$33 | C75: Plant Lat Plant 5 | D75: 0 | E75: 0 | F75: Contin
B76: $N$34 | C76: Plant Long Plant 1 | D76: 0 | E76: 78.48190059 | F76: Contin
B77: $O$34 | C77: Plant Long Plant 2 | D77: 0 | E77: 88.3666665 | F77: Contin
B78: $P$34 | C78: Plant Long Plant 3 | D78: 0 | E78: 72.5800029 | F78: Contin
B79: $Q$34 | C79: Plant Long Plant 4 | D79: 0 | E79: 77.46830385 | F79: Contin
B80: $R$34 | C80: Plant Long Plant 5 | D80: 0 | E80: 0 | F80: Contin
A83: Constraints
B84: Cell | C84: Name | D84: Cell Value | E84: Formula | F84: Status | G84: Slack
B85: $S$23 | C85: Region 1 - Delhi Sum | D85: 1 | E85: $S$23=1 | F85: Binding | G85: 0
B86: $S$24 | C86: Region 2 - Mumbai Sum | D86: 1 | E86: $S$24=1 | F86: Binding | G86: 0
B87: $S$25 | C87: Region 3 - Kolkata Sum | D87: 1 | E87: $S$25=1 | F87: Binding | G87: 0
B88: $S$26 | C88: Region 4 - Chennai Sum | D88: 1 | E88: $S$26=1 | F88: Binding | G88: 0
B89: $S$27 | C89: Region 5 - Bangalore Sum | D89: 1 | E89: $S$27=1 | F89: Binding | G89: 0
B90: $S$28 | C90: Region 6 - Bhopal Sum | D90: 1 | E90: $S$28=1 | F90: Binding | G90: 0
B91: $S$29 | C91: Region 7 - Ahmedabad Sum | D91: 1 | E91: $S$29=1 | F91: Binding | G91: 0
B92: $S$30 | C92: Region 8 - Hyderabad Sum | D92: 1 | E92: $S$30=1 | F92: Binding | G92: 0
B93: $S$31 | C93: Region 9 - Jaipur Sum | D93: 1 | E93: $S$31=1 | F93: Binding | G93: 0
B94: $S$32 | C94: Region 10 - Lucknow Sum | D94: 1 | E94: $S$32=1 | F94: Binding | G94: 0
B95: $N$23 | C95: Region 1 - Delhi Plant 1 | D95: 0 | E95: $N$23<=$G$23 | F95: Not Binding | G95: 1
B96: $O$23 | C96: Region 1 - Delhi Plant 2 | D96: 0 | E96: $O$23<=$H$23 | F96: Not Binding | G96: 1
B97: $P$23 | C97: Region 1 - Delhi Plant 3 | D97: 0 | E97: $P$23<=$I$23 | F97: Binding | G97: 0
B98: $Q$23 | C98: Region 1 - Delhi Plant 4 | D98: 1 | E98: $Q$23<=$J$23 | F98: Binding | G98: 0
B99: $R$23 | C99: Region 1 - Delhi Plant 5 | D99: 0 | E99: $R$23<=$K$23 | F99: Binding | G99: 0
B100: $N$24 | C100: Region 2 - Mumbai Plant 1 | D100: 0 | E100: $N$24<=$G$24 | F100: Binding | G100: 0
B101: $O$24 | C101: Region 2 - Mumbai Plant 2 | D101: 0 | E101: $O$24<=$H$24 | F101: Not Binding | G101: 1
B102: $P$24 | C102: Region 2 - Mumbai Plant 3 | D102: 1 | E102: $P$24<=$I$24 | F102: Binding | G102: 0
B103: $Q$24 | C103: Region 2 - Mumbai Plant 4 | D103: 0 | E103: $Q$24<=$J$24 | F103: Not Binding | G103: 1
B104: $R$24 | C104: Region 2 - Mumbai Plant 5 | D104: 0 | E104: $R$24<=$K$24 | F104: Binding | G104: 0
B105: $N$25 | C105: Region 3 - Kolkata Plant 1 | D105: 0 | E105: $N$25<=$G$25 | F105: Not Binding | G105: 1
B106: $O$25 | C106: Region 3 - Kolkata Plant 2 | D106: 1 | E106: $O$25<=$H$25 | F106: Binding | G106: 0
B107: $P$25 | C107: Region 3 - Kolkata Plant 3 | D107: 0 | E107: $P$25<=$I$25 | F107: Not Binding | G107: 1
B108: $Q$25 | C108: Region 3 - Kolkata Plant 4 | D108: 0 | E108: $Q$25<=$J$25 | F108: Not Binding | G108: 1
B109: $R$25 | C109: Region 3 - Kolkata Plant 5 | D109: 0 | E109: $R$25<=$K$25 | F109: Binding | G109: 0
B110: $N$26 | C110: Region 4 - Chennai Plant 1 | D110: 1 | E110: $N$26<=$G$26 | F110: Binding | G110: 0
B111: $O$26 | C111: Region 4 - Chennai Plant 2 | D111: 0 | E111: $O$26<=$H$26 | F111: Not Binding | G111: 1
B112: $P$26 | C112: Region 4 - Chennai Plant 3 | D112: 0 | E112: $P$26<=$I$26 | F112: Not Binding | G112: 1
B113: $Q$26 | C113: Region 4 - Chennai Plant 4 | D113: 0 | E113: $Q$26<=$J$26 | F113: Not Binding | G113: 1
B114: $R$26 | C114: Region 4 - Chennai Plant 5 | D114: 0 | E114: $R$26<=$K$26 | F114: Binding | G114: 0
B115: $N$27 | C115: Region 5 - Bangalore Plant 1 | D115: 1 | E115: $N$27<=$G$27 | F115: Binding | G115: 0
B116: $O$27 | C116: Region 5 - Bangalore Plant 2 | D116: 0 | E116: $O$27<=$H$27 | F116: Not Binding | G116: 1
B117: $P$27 | C117: Region 5 - Bangalore Plant 3 | D117: 0 | E117: $P$27<=$I$27 | F117: Not Binding | G117: 1
B118: $Q$27 | C118: Region 5 - Bangalore Plant 4 | D118: 0 | E118: $Q$27<=$J$27 | F118: Not Binding | G118: 1
B119: $R$27 | C119: Region 5 - Bangalore Plant 5 | D119: 0 | E119: $R$27<=$K$27 | F119: Binding | G119: 0
B120: $N$28 | C120: Region 6 - Bhopal Plant 1 | D120: 0 | E120: $N$28<=$G$28 | F120: Not Binding | G120: 1
B121: $O$28 | C121: Region 6 - Bhopal Plant 2 | D121: 0 | E121: $O$28<=$H$28 | F121: Not Binding | G121: 1
B122: $P$28 | C122: Region 6 - Bhopal Plant 3 | D122: 0 | E122: $P$28<=$I$28 | F122: Not Binding | G122: 1
B123: $Q$28 | C123: Region 6 - Bhopal Plant 4 | D123: 1 | E123: $Q$28<=$J$28 | F123: Binding | G123: 0
B124: $R$28 | C124: Region 6 - Bhopal Plant 5 | D124: 0 | E124: $R$28<=$K$28 | F124: Binding | G124: 0
B125: $N$29 | C125: Region 7 - Ahmedabad Plant 1 | D125: 0 | E125: $N$29<=$G$29 | F125: Not Binding | G125: 1
B126: $O$29 | C126: Region 7 - Ahmedabad Plant 2 | D126: 0 | E126: $O$29<=$H$29 | F126: Not Binding | G126: 1
B127: $P$29 | C127: Region 7 - Ahmedabad Plant 3 | D127: 1 | E127: $P$29<=$I$29 | F127: Binding | G127: 0
B128: $Q$29 | C128: Region 7 - Ahmedabad Plant 4 | D128: 0 | E128: $Q$29<=$J$29 | F128: Not Binding | G128: 1
B129: $R$29 | C129: Region 7 - Ahmedabad Plant 5 | D129: 0 | E129: $R$29<=$K$29 | F129: Binding | G129: 0
B130: $N$30 | C130: Region 8 - Hyderabad Plant 1 | D130: 1 | E130: $N$30<=$G$30 | F130: Binding | G130: 0
B131: $O$30 | C131: Region 8 - Hyderabad Plant 2 | D131: 0 | E131: $O$30<=$H$30 | F131: Not Binding | G131: 1
B132: $P$30 | C132: Region 8 - Hyderabad Plant 3 | D132: 0 | E132: $P$30<=$I$30 | F132: Not Binding | G132: 1
B133: $Q$30 | C133: Region 8 - Hyderabad Plant 4 | D133: 0 | E133: $Q$30<=$J$30 | F133: Not Binding | G133: 1
B134: $R$30 | C134: Region 8 - Hyderabad Plant 5 | D134: 0 | E134: $R$30<=$K$30 | F134: Binding | G134: 0
B135: $N$31 | C135: Region 9 - Jaipur Plant 1 | D135: 0 | E135: $N$31<=$G$31 | F135: Not Binding | G135: 1
B136: $O$31 | C136: Region 9 - Jaipur Plant 2 | D136: 0 | E136: $O$31<=$H$31 | F136: Not Binding | G136: 1
B137: $P$31 | C137: Region 9 - Jaipur Plant 3 | D137: 0 | E137: $P$31<=$I$31 | F137: Not Binding | G137: 1
B138: $Q$31 | C138: Region 9 - Jaipur Plant 4 | D138: 1 | E138: $Q$31<=$J$31 | F138: Binding | G138: 0
B139: $R$31 | C139: Region 9 - Jaipur Plant 5 | D139: 0 | E139: $R$31<=$K$31 | F139: Binding | G139: 0
B140: $N$32 | C140: Region 10 - Lucknow Plant 1 | D140: 0 | E140: $N$32<=$G$32 | F140: Not Binding | G140: 1
B141: $O$32 | C141: Region 10 - Lucknow Plant 2 | D141: 0 | E141: $O$32<=$H$32 | F141: Not Binding | G141: 1
B142: $P$32 | C142: Region 10 - Lucknow Plant 3 | D142: 0 | E142: $P$32<=$I$32 | F142: Not Binding | G142: 1
B143: $Q$32 | C143: Region 10 - Lucknow Plant 4 | D143: 1 | E143: $Q$32<=$J$32 | F143: Binding | G143: 0
B144: $R$32 | C144: Region 10 - Lucknow Plant 5 | D144: 0 | E144: $R$32<=$K$32 | F144: Binding | G144: 0
B145: $N$33 | C145: Plant Lat Plant 1 | D145: 13.59641107 | E145: $N$33<=90 | F145: Not Binding | G145: 76.40358893
B146: $O$33 | C146: Plant Lat Plant 2 | D146: 22.56666703 | E146: $O$33<=90 | F146: Not Binding | G146: 67.43333297
B147: $P$33 | C147: Plant Lat Plant 3 | D147: 23.02996671 | E147: $P$33<=90 | F147: Not Binding | G147: 66.97003329
B148: $Q$33 | C148: Plant Lat Plant 4 | D148: 26.90404861 | E148: $Q$33<=90 | F148: Not Binding | G148: 63.09595139
B149: $R$33 | C149: Plant Lat Plant 5 | D149: 0 | E149: $R$33<=90 | F149: Not Binding | G149: 90
B150: $N$33 | C150: Plant Lat Plant 1 | D150: 13.59641107 | E150: $N$33>=-90 | F150: Not Binding | G150: 103.5964111
B151: $O$33 | C151: Plant Lat Plant 2 | D151: 22.56666703 | E151: $O$33>=-90 | F151: Not Binding | G151: 112.566667
B152: $P$33 | C152: Plant Lat Plant 3 | D152: 23.02996671 | E152: $P$33>=-90 | F152: Not Binding | G152: 113.0299667
B153: $Q$33 | C153: Plant Lat Plant 4 | D153: 26.90404861 | E153: $Q$33>=-90 | F153: Not Binding | G153: 116.9040486
B154: $R$33 | C154: Plant Lat Plant 5 | D154: 0 | E154: $R$33>=-90 | F154: Not Binding | G154: 90
B155: $N$34 | C155: Plant Long Plant 1 | D155: 78.48190059 | E155: $N$34<=180 | F155: Not Binding | G155: 101.5180994
B156: $O$34 | C156: Plant Long Plant 2 | D156: 88.3666665 | E156: $O$34<=180 | F156: Not Binding | G156: 91.6333335
B157: $P$34 | C157: Plant Long Plant 3 | D157: 72.5800029 | E157: $P$34<=180 | F157: Not Binding | G157: 107.4199971
B158: $Q$34 | C158: Plant Long Plant 4 | D158: 77.46830385 | E158: $Q$34<=180 | F158: Not Binding | G158: 102.5316961
B159: $R$34 | C159: Plant Long Plant 5 | D159: 0 | E159: $R$34<=180 | F159: Not Binding | G159: 180
B160: $N$34 | C160: Plant Long Plant 1 | D160: 78.48190059 | E160: $N$34>=-180 | F160: Not Binding | G160: 258.4819006
B161: $O$34 | C161: Plant Long Plant 2 | D161: 88.3666665 | E161: $O$34>=-180 | F161: Not Binding | G161: 268.3666665
B162: $P$34 | C162: Plant Long Plant 3 | D162: 72.5800029 | E162: $P$34>=-180 | F162: Not Binding | G162: 252.5800029
B163: $Q$34 | C163: Plant Long Plant 4 | D163: 77.46830385 | E163: $Q$34>=-180 | F163: Not Binding | G163: 257.4683039
B164: $R$34 | C164: Plant Long Plant 5 | D164: 0 | E164: $R$34>=-180 | F164: Not Binding | G164: 180
B165: $N$23:$R$32=Binary

Sheet n-Centroid
C7: Set No of Centroids (max 5) | D7: =Demand!G8 -> 4
C20: Helper Matrix | M20: Decision Matrix | U20: Objective Function
G21: =IF($D$7>=1,1,0) -> 1 | H21: =IF($D$7>=2,1,0) -> 1 | I21: =IF($D$7>=3,1,0) -> 1 | J21: =IF($D$7>=4,1,0) -> 1 | K21: =IF($D$7>=5,1,0) -> 0
C22: =Demand!B7 -> Demand Region | D22: =Demand!C7 -> Demand (Qty) | E22: =Demand!D7 -> Latitude | F22: =Demand!E7 -> Longitude | G22: Plant 1 | H22: Plant 2 | I22: Plant 3 | J22: Plant 4 | K22: Plant 5 | M22: =C22 -> Demand Region | N22: Plant 1 | O22: Plant 2 | P22: Plant 3 | Q22: Plant 4 | R22: Plant 5 | S22: Sum | U22: =M22 -> Demand Region | V22: =N22 -> Plant 1 | W22: Plant 2 | X22: Plant 3 | Y22: Plant 4 | Z22: =R22 -> Plant 5 | AA22: Dist x Demand
C23: =Demand!B8 -> Region 1 - Delhi | D23: =Demand!C8 -> 67 | E23: =Demand!D8 -> 28.61 | F23: =Demand!E8 -> 77.23 | G23: =G$21 -> 1 | H23: =H$21 -> 1 | I23: 1 | J23: 1 | K23: 0 | M23: =C23 -> Region 1 - Delhi | N23: 0 | O23: 0 | P23: 0 | Q23: 1 | R23: 0 | S23: =SUM(N23:R23) -> 1 | U23: =M23 -> Region 1 - Delhi | V23: =G23* (ACOS(COS(RADIANS(90-N$33)) *COS(RADIANS(90-$E23)) +SIN(RADIANS(90-N$33)) *SIN(RADIANS(90-$E23)) *COS(RADIANS(N$34-$F23))) *6371) -> 1674.436869 | W23: =H23* (ACOS(COS(RADIANS(90-O$33)) *COS(RADIANS(90-$E23)) +SIN(RADIANS(90-O$33)) *SIN(RADIANS(90-$E23)) *COS(RADIANS(O$34-$F23))) *6371) -> 1302.42489 | X23: 775.4366118 | Y23: 191.1367846 | Z23: 0 | AA23: =D23*((V23*N23)+(O23*W23)+(X23*P23)+(Y23*Q23)+(R23*Z23)) -> 12806.16457
C24: =Demand!B9 -> Region 2 - Mumbai | D24: =Demand!C9 -> 70 | E24: =Demand!D9 -> 18.975 | F24: =Demand!E9 -> 72.825833 | G24: =G$21 -> 1 | H24: 1 | I24: 1 | J24: 1 | K24: 0 | M24: Region 2 - Mumbai | N24: 0 | O24: 0 | P24: 1 | Q24: 0 | R24: 0 | S24: =SUM(N24:R24) -> 1 | U24: Region 2 - Mumbai | V24: =G24* (ACOS(COS(RADIANS(90-N$33)) *COS(RADIANS(90-$E24)) +SIN(RADIANS(90-N$33)) *SIN(RADIANS(90-$E24)) *COS(RADIANS(N$34-$F24))) *6371) -> 849.5719724 | W24: =H24* (ACOS(COS(RADIANS(90-O$33)) *COS(RADIANS(90-$E24)) +SIN(RADIANS(90-O$33)) *SIN(RADIANS(90-$E24)) *COS(RADIANS(O$34-$F24))) *6371) -> 1663.398105 | X24: =I24* (ACOS(COS(RADIANS(90-P$33)) *COS(RADIANS(90-$E24)) +SIN(RADIANS(90-P$33)) *SIN(RADIANS(90-$E24)) *COS(RADIANS(P$34-$F24))) *6371) -> 451.6128633 | Y24: =J24* (ACOS(COS(RADIANS(90-Q$33)) *COS(RADIANS(90-$E24)) +SIN(RADIANS(90-Q$33)) *SIN(RADIANS(90-$E24)) *COS(RADIANS(Q$34-$F24))) *6371) -> 1001.383284 | Z24: =K24* (ACOS(COS(RADIANS(90-R$33)) *COS(RADIANS(90-$E24)) +SIN(RADIANS(90-R$33)) *SIN(RADIANS(90-$E24)) *COS(RADIANS(R$34-$F24))) *6371) -> 0 | AA24: =D24*((V24*N24)+(O24*W24)+(X24*P24)+(Y24*Q24)+(R24*Z24)) -> 31612.90043
C25: =Demand!B10 -> Region 3 - Kolkata | D25: =Demand!C10 -> 70 | E25: =Demand!D10 -> 22.566667 | F25: =Demand!E10 -> 88.366667 | G25: 1 | H25: 1 | I25: 1 | J25: 1 | K25: 0 | M25: Region 3 - Kolkata | N25: 0 | O25: 1 | P25: 0 | Q25: 0 | R25: 0 | S25: 1 | U25: Region 3 - Kolkata | V25: 1443.40411 | W25: 0 | X25: 1618.295729 | Y25: 1201.025997 | Z25: 0 | AA25: 0
C26: =Demand!B11 -> Region 4 - Chennai | D26: =Demand!C11 -> 46 | E26: =Demand!D11 -> 13.083333 | F26: =Demand!E11 -> 80.266667 | G26: 1 | H26: 1 | I26: 1 | J26: 1 | K26: 0 | M26: Region 4 - Chennai | N26: 1 | O26: 0 | P26: 0 | Q26: 0 | R26: 0 | S26: 1 | U26: Region 4 - Chennai | V26: 201.3527882 | W26: 1358.255593 | X26: 1371.619923 | Y26: 1564.178792 | Z26: 0 | AA26: 9262.228258
C27: =Demand!B12 -> Region 5 - Bangalore | D27: =Demand!C12 -> 54 | E27: =Demand!D12 -> 12.966667 | F27: =Demand!E12 -> 77.566667 | G27: 1 | H27: 1 | I27: 1 | J27: 1 | K27: 0 | M27: Region 5 - Bangalore | N27: 1 | O27: 0 | P27: 0 | Q27: 0 | R27: 0 | S27: 1 | U27: Region 5 - Bangalore | V27: 121.2998384 | W27: 1563.014719 | X27: 1236.641075 | Y27: 1549.799999 | Z27: 0 | AA27: 6550.191274
C28: =Demand!B13 -> Region 6 - Bhopal | D28: =Demand!C13 -> 66 | E28: =Demand!D13 -> 23.25 | F28: =Demand!E13 -> 77.416667 | G28: 1 | H28: 1 | I28: 1 | J28: 1 | K28: 0 | M28: Region 6 - Bhopal | N28: 0 | O28: 0 | P28: 0 | Q28: 1 | R28: 0 | S28: 1 | U28: Region 6 - Bhopal | V28: 1079.278043 | W28: 1123.853953 | X28: 495.1258566 | Y28: 406.3449292 | Z28: 0 | AA28: 26818.76532
C29: =Demand!B14 -> Region 7 - Ahmedabad | D29: =Demand!C14 -> 78 | E29: =Demand!D14 -> 23.03 | F29: =Demand!E14 -> 72.58 | G29: 1 | H29: 1 | I29: 1 | J29: 1 | K29: 0 | M29: Region 7 - Ahmedabad | N29: 0 | O29: 0 | P29: 1 | Q29: 0 | R29: 0 | S29: 1 | U29: Region 7 - Ahmedabad | V29: 1219.545248 | W29: 1618.295892 | X29: 0.003710986675 | Y29: 654.3699549 | Z29: 0 | AA29: 0.2894569607
C30: =Demand!B15 -> Region 8 - Hyderabad | D30: =Demand!C15 -> 44 | E30: =Demand!D15 -> 17.37 | F30: =Demand!E15 -> 78.48 | G30: 1 | H30: 1 | I30: 1 | J30: 1 | K30: 0 | M30: Region 8 - Hyderabad | N30: 1 | O30: 0 | P30: 0 | Q30: 0 | R30: 0 | S30: 1 | U30: Region 8 - Hyderabad | V30: 419.6039934 | W30: 1183.295487 | X30: 880.1727284 | Y30: 1065.229038 | Z30: 0 | AA30: 18462.57571
C31: =Demand!B16 -> Region 9 - Jaipur | D31: =Demand!C16 -> 19 | E31: =Demand!D16 -> 26.9 | F31: =Demand!E16 -> 75.8 | G31: 1 | H31: 1 | I31: 1 | J31: 1 | K31: 0 | M31: Region 9 - Jaipur | N31: 0 | O31: 0 | P31: 0 | Q31: 1 | R31: 0 | S31: 1 | U31: Region 9 - Jaipur | V31: 1505.35218 | W31: 1356.671571 | X31: 538.954665 | Y31: 165.4310674 | Z31: 0 | AA31: 3143.19028
C32: =Demand!B17 -> Region 10 - Lucknow | D32: =Demand!C17 -> 28 | E32: =Demand!D17 -> 26.8 | F32: =Demand!E17 -> 80.9 | G32: 1 | H32: 1 | I32: 1 | J32: 1 | K32: 0 | M32: Region 10 - Lucknow | N32: 0 | O32: 0 | P32: 0 | Q32: 1 | R32: 0 | S32: 1 | U32: Region 10 - Lucknow | V32: 1489.566827 | W32: 888.8924192 | X32: 937.597451 | Y32: 340.6290392 | Z32: 0 | AA32: 9537.613097
M33: Plant Lat | N33: 13.59641107 | O33: 22.56666703 | P33: 23.02996671 | Q33: 26.90404861 | R33: 0 | Z33: Σ Dist x Demand | AA33: =SUM(AA23:AA32) -> 118193.9184
M34: Plant Long | N34: 78.48190059 | O34: 88.3666665 | P34: 72.5800029 | Q34: 77.46830385 | R34: 0 | Z34: Weighted Avg Distance | AA34: =AA33/SUM(D23:D32) -> 218.0699601
M35: Min Lat | N35: -90 | O35: -90 | P35: -90 | Q35: -90 | R35: -90 | Z35: (in kms)
M36: Min Long | N36: -180 | O36: -180 | P36: -180 | Q36: -180 | R36: -180
M37: Max Lat | N37: 90 | O37: 90 | P37: 90 | Q37: 90 | R37: 90
M38: Max Long | N38: 180 | O38: 180 | P38: 180 | Q38: 180 | R38: 180
EZ2678: © Copyright Supply Chain Detective. This work is licensed under Creative Commons Attribution-NonCommercial-ShareAlike 4.0 International License. This means that you are free to copy, modify and distribute the derivatives of this work under the same license for non-commercial use only with attribution to the original author. If you wish to use this work for commercial purposes, including training, contact the author for appropriate permissions.
